[Event "Live Chess"]
[Site "Chess.com"]
[Date "2023.05.20"]
[Round "-"]
[White "BostonStrangler"]
[Black "CheckString"]
[Result "1-0"]
[WhiteElo "2018"]
[BlackElo "1298"]
[TimeControl "300"]
[EndTime "10:02:26 PDT"]
[Termination "BostonStrangler won by checkmate"]

1. Nf3 {[%clk 0:04:57.8]} 1... d5 {[%clk 0:04:56.5]} 2. g3 {[%clk 0:04:57.1]}
2... Nc6 {[%clk 0:04:53]} 3. Bg2 {[%clk 0:04:57]} 3... e5 {[%clk 0:04:52.3]} 4.
O-O {[%clk 0:04:55.1]} 4... Nf6 {[%clk 0:04:46.6]} 5. c4 {[%clk 0:04:53.7]} 5...
e4 {[%clk 0:04:40.9]} 6. Ng5 {[%clk 0:04:47.2]} 6... h6 {[%clk 0:04:35.3]} 7.
Nh3 {[%clk 0:04:40.1]} 7... Bxh3 {[%clk 0:04:29.9]} 8. Bxh3 {[%clk 0:04:37.6]}
8... Bc5 {[%clk 0:04:20.4]} 9. cxd5 {[%clk 0:04:34]} 9... Nxd5 {[%clk
0:04:19.5]} 10. Nc3 {[%clk 0:04:30.8]} 10... O-O {[%clk 0:04:12.4]} 11. Nxe4
{[%clk 0:04:26.6]} 11... Bb6 {[%clk 0:04:00.5]} 12. d3 {[%clk 0:04:20.2]} 12...
Nf6 {[%clk 0:03:54.5]} 13. Bg2 {[%clk 0:04:07.7]} 13... Nxe4 {[%clk 0:03:49.7]}
14. Bxe4 {[%clk 0:04:07.6]} 14... Qf6 {[%clk 0:03:43.8]} 15. Rb1 {[%clk
0:04:01.3]} 15... Rad8 {[%clk 0:03:39.3]} 16. b4 {[%clk 0:03:40.7]} 16... Rfe8
{[%clk 0:03:32.2]} 17. Bxc6 {[%clk 0:03:21.5]} 17... Qxc6 {[%clk 0:03:27]} 18.
a4 {[%clk 0:03:09.9]} 18... a5 {[%clk 0:03:19]} 19. b5 {[%clk 0:03:06.3]} 19...
Qc5 {[%clk 0:03:12.5]} 20. Bb2 {[%clk 0:02:56.4]} 20... Rd5 {[%clk 0:03:02.2]}
21. e3 {[%clk 0:02:41.1]} 21... Red8 {[%clk 0:02:56.7]} 22. Bd4 {[%clk
0:02:38.4]} 22... Qd6 {[%clk 0:02:52.5]} 23. Bxb6 {[%clk 0:02:36.6]} 23... Qxb6
{[%clk 0:02:52.4]} 24. d4 {[%clk 0:02:33.4]} 24... Qg6 {[%clk 0:02:50.5]} 25.
Rc1 {[%clk 0:02:23.7]} 25... R8d7 {[%clk 0:02:43.7]} 26. Qc2 {[%clk 0:02:21.9]}
26... Qd6 {[%clk 0:02:42]} 27. Qd2 {[%clk 0:02:06.6]} 27... Qb4 {[%clk
0:02:36.8]} 28. Qxb4 {[%clk 0:02:02.9]} 28... axb4 {[%clk 0:02:36.7]} 29. Rb1
{[%clk 0:02:02]} 29... c5 {[%clk 0:02:25.3]} 30. bxc6 {[%clk 0:01:58.7]} 30...
bxc6 {[%clk 0:02:25.2]} 31. Rxb4 {[%clk 0:01:57.1]} 31... Ra7 {[%clk 0:02:16.9]}
32. Rc1 {[%clk 0:01:54.4]} 32... Rda5 {[%clk 0:02:09.6]} 33. Rxc6 {[%clk
0:01:52.5]} 33... Rxa4 {[%clk 0:02:09.5]} 34. Rxa4 {[%clk 0:01:51.7]} 34... Rxa4
{[%clk 0:02:09.4]} 35. Kg2 {[%clk 0:01:50.9]} 35... Ra5 {[%clk 0:02:06.6]} 36.
Rc7 {[%clk 0:01:49.6]} 36... Ra6 {[%clk 0:02:03.3]} 37. h4 {[%clk 0:01:46.7]}
37... Kf8 {[%clk 0:02:00.8]} 38. g4 {[%clk 0:01:45.4]} 38... Re6 {[%clk
0:01:59.9]} 39. Kf3 {[%clk 0:01:40.9]} 39... Re7 {[%clk 0:01:59]} 40. Rxe7
{[%clk 0:01:38.6]} 40... Kxe7 {[%clk 0:01:58.9]} 41. Ke4 {[%clk 0:01:37.3]}
41... Ke6 {[%clk 0:01:58.2]} 42. f4 {[%clk 0:01:35.7]} 42... g6 {[%clk
0:01:55.8]} 43. f5+ {[%clk 0:01:27.7]} 43... gxf5+ {[%clk 0:01:53.5]} 44. gxf5+
{[%clk 0:01:27.6]} 44... Kd6 {[%clk 0:01:52.5]} 45. h5 {[%clk 0:01:21.6]} 45...
f6 {[%clk 0:01:51.5]} 46. Kd3 {[%clk 0:01:17.9]} 46... Kd5 {[%clk 0:01:50.7]}
47. e4+ {[%clk 0:01:17.2]} 47... Kd6 {[%clk 0:01:50]} 48. Kc4 {[%clk 0:01:15.8]}
48... Kc6 {[%clk 0:01:48.8]} 49. Kb4 {[%clk 0:01:11.5]} 49... Kd6 {[%clk
0:01:48.7]} 50. Kb5 {[%clk 0:01:10.3]} 50... Kd7 {[%clk 0:01:47.6]} 51. Kc5
{[%clk 0:01:09.4]} 51... Ke7 {[%clk 0:01:46.8]} 52. Kd5 {[%clk 0:01:08.4]} 52...
Kd7 {[%clk 0:01:46]} 53. e5 {[%clk 0:01:07.8]} 53... Ke7 {[%clk 0:01:44]} 54.
Kc6 {[%clk 0:01:04.7]} 54... Kf7 {[%clk 0:01:41.6]} 55. Kd7 {[%clk 0:01:02.7]}
55... Kg7 {[%clk 0:01:38.9]} 56. e6 {[%clk 0:01:00.8]} 56... Kf8 {[%clk
0:01:37.9]} 57. e7+ {[%clk 0:00:59.4]} 57... Kg7 {[%clk 0:01:35.7]} 58. e8=Q
{[%clk 0:00:57.6]} 58... Kh7 {[%clk 0:01:34.8]} 59. Ke7 {[%clk 0:00:51.3]} 59...
Kg7 {[%clk 0:01:33.7]} 60. Qg6+ {[%clk 0:00:50.1]} 60... Kh8 {[%clk 0:01:32.6]}
61. Qxh6+ {[%clk 0:00:47.9]} 61... Kg8 {[%clk 0:01:31.5]} 62. Qg6+ {[%clk
0:00:46.3]} 62... Kh8 {[%clk 0:01:30]} 63. Qxf6+ {[%clk 0:00:44.9]} 63... Kh7
{[%clk 0:01:29.9]} 64. h6 {[%clk 0:00:40.2]} 64... Kg8 {[%clk 0:01:28.5]} 65.
Qg7# {[%clk 0:00:39.9]} 1-0

[Event "Live Chess"]
[Site "Chess.com"]
[Date "2023.05.20"]
[Round "-"]
[White "YrrriKharkiv"]
[Black "JoeyCage"]
[Result "0-1"]
[WhiteElo "2100"]
[BlackElo "2317"]
[TimeControl "300"]
[EndTime "10:02:28 PDT"]
[Termination "JoeyCage won by resignation"]

1. d4 {[%clk 0:04:53.7]} 1... g6 {[%clk 0:04:58.7]} 2. Nf3 {[%clk 0:04:53.1]}
2... Bg7 {[%clk 0:04:57.8]} 3. c4 {[%clk 0:04:52.7]} 3... d6 {[%clk 0:04:57]} 4.
Nc3 {[%clk 0:04:52.2]} 4... Nc6 {[%clk 0:04:53]} 5. h3 {[%clk 0:04:48.5]} 5...
e5 {[%clk 0:04:51.3]} 6. d5 {[%clk 0:04:47.3]} 6... Nce7 {[%clk 0:04:49.8]} 7.
e4 {[%clk 0:04:44.4]} 7... f5 {[%clk 0:04:48.6]} 8. Ng5 {[%clk 0:04:38.6]} 8...
Nf6 {[%clk 0:04:47.1]} 9. Be2 {[%clk 0:04:34.1]} 9... O-O {[%clk 0:04:44]} 10.
exf5 {[%clk 0:04:31.1]} 10... Nxf5 {[%clk 0:04:40.7]} 11. O-O {[%clk 0:04:24.9]}
11... Nd4 {[%clk 0:04:39.1]} 12. Be3 {[%clk 0:04:22.3]} 12... Nxe2+ {[%clk
0:04:35.9]} 13. Qxe2 {[%clk 0:04:19.7]} 13... Qe7 {[%clk 0:04:35.1]} 14. Rae1
{[%clk 0:04:15]} 14... Nh5 {[%clk 0:04:33.2]} 15. Qd2 {[%clk 0:04:07.3]} 15...
h6 {[%clk 0:04:27.2]} 16. Nf3 {[%clk 0:04:01.3]} 16... Kh7 {[%clk 0:04:23.1]}
17. b4 {[%clk 0:03:56.9]} 17... Qf7 {[%clk 0:04:20.9]} 18. c5 {[%clk 0:03:49.9]}
18... Bd7 {[%clk 0:04:18.2]} 19. a4 {[%clk 0:03:46.1]} 19... a6 {[%clk 0:04:15]}
20. b5 {[%clk 0:03:44.8]} 20... axb5 {[%clk 0:04:13.7]} 21. axb5 {[%clk
0:03:43.2]} 21... Nf4 {[%clk 0:04:09.5]} 22. Bxf4 {[%clk 0:03:42.3]} 22... Qxf4
{[%clk 0:04:08]} 23. Qxf4 {[%clk 0:03:38.6]} 23... Rxf4 {[%clk 0:04:06.5]} 24.
cxd6 {[%clk 0:03:24.6]} 24... cxd6 {[%clk 0:04:04.6]} 25. Re4 {[%clk 0:03:15.8]}
25... Raf8 {[%clk 0:03:56.9]} 26. Nd2 {[%clk 0:03:07.7]} 26... R4f7 {[%clk
0:03:46.6]} 27. Nc4 {[%clk 0:02:59.4]} 27... Rf6 {[%clk 0:03:40.7]} 28. b6
{[%clk 0:02:52.7]} 28... Rc8 {[%clk 0:03:37.8]} 29. Rc1 {[%clk 0:02:45.6]} 29...
h5 {[%clk 0:03:34.7]} 30. Ne2 {[%clk 0:02:43.2]} 30... Bf5 {[%clk 0:03:25.6]}
31. Re3 {[%clk 0:02:38.7]} 31... Bh6 {[%clk 0:03:23.5]} 32. Rec3 {[%clk
0:02:38.3]} 32... Bxc1 {[%clk 0:03:21.2]} 33. Nxc1 {[%clk 0:02:37.5]} 33... Bd7
{[%clk 0:03:12]} 34. Nb3 {[%clk 0:02:27.4]} 34... Bb5 {[%clk 0:02:50.3]} 35.
Nbd2 {[%clk 0:02:26.3]} 35... Rf4 {[%clk 0:02:45.7]} 36. Nxd6 {[%clk 0:02:20.4]}
36... Rxc3 {[%clk 0:02:40.4]} 37. Nxb5 {[%clk 0:02:19.8]} 37... Rc1+ {[%clk
0:02:38.4]} 38. Kh2 {[%clk 0:02:16.9]} 38... Rxf2 {[%clk 0:02:37.1]} 39. Ne4
{[%clk 0:02:13.5]} 39... Rff1 {[%clk 0:02:28.5]} 40. h4 {[%clk 0:02:09.2]} 40...
Rcd1 {[%clk 0:02:25.4]} 41. d6 {[%clk 0:02:07.1]} 41... Rfe1 {[%clk 0:02:21.8]}
42. Nbc3 {[%clk 0:02:04.8]} 42... Rd4 {[%clk 0:02:15.4]} 43. Ng5+ {[%clk
0:01:56.8]} 43... Kg8 {[%clk 0:02:12.5]} 44. Nb5 {[%clk 0:01:55.4]} 44... Rb1
{[%clk 0:02:08.6]} 45. Nc3 {[%clk 0:01:42.2]} 45... Rxb6 {[%clk 0:02:06.6]} 46.
Nce4 {[%clk 0:01:41.6]} 46... Rbxd6 {[%clk 0:02:03]} 47. Kg3 {[%clk 0:01:37.8]}
47... Rxe4 {[%clk 0:02:01.7]} 48. Nxe4 {[%clk 0:01:36.6]} 48... Rd3+ {[%clk
0:02:00.7]} 49. Kf2 {[%clk 0:01:34.9]} 49... b5 {[%clk 0:01:59.5]} 50. Ke2
{[%clk 0:01:34.4]} 50... Rd4 {[%clk 0:01:57.5]} 51. Nd6 {[%clk 0:01:29.2]} 51...
b4 {[%clk 0:01:55.1]} 52. Nb5 {[%clk 0:01:27.3]} 52... Rxh4 {[%clk 0:01:53.2]}
53. Ke3 {[%clk 0:01:25.4]} 53... b3 {[%clk 0:01:51.8]} 54. Nc3 {[%clk
0:01:23.7]} 54... Rc4 {[%clk 0:01:49.7]} 0-1

[Event "Live Chess"]
[Site "Chess.com"]
[Date "2023.05.20"]
[Round "-"]
[White "GMHarry-youtube"]
[Black "PiotrD11"]
[Result "1-0"]
[WhiteElo "2183"]
[BlackElo "1307"]
[TimeControl "300"]
[EndTime "10:02:28 PDT"]
[Termination "GMHarry-youtube won by resignation"]

1. e4 {[%clk 0:04:59]} 1... d5 {[%clk 0:04:59.9]} 2. exd5 {[%clk 0:04:58.4]}
2... Nf6 {[%clk 0:04:57.4]} 3. d4 {[%clk 0:04:57.1]} 3... Nxd5 {[%clk
0:04:56.6]} 4. Nf3 {[%clk 0:04:56.9]} 4... Nc6 {[%clk 0:04:52]} 5. c3 {[%clk
0:04:56.8]} 5... Bf5 {[%clk 0:04:50.4]} 6. Bd3 {[%clk 0:04:56.3]} 6... Bxd3
{[%clk 0:04:48.8]} 7. Qxd3 {[%clk 0:04:56.2]} 7... e6 {[%clk 0:04:34.7]} 8. Qb5
{[%clk 0:04:50.7]} 8... Rb8 {[%clk 0:04:19.5]} 9. Ne5 {[%clk 0:04:48.5]} 9...
Qd6 {[%clk 0:04:10.2]} 10. Nxc6 {[%clk 0:04:34.7]} 10... Qxc6 {[%clk 0:04:08.1]}
11. Qxc6+ {[%clk 0:04:33.4]} 11... bxc6 {[%clk 0:04:07.3]} 12. Nd2 {[%clk
0:04:32.5]} 12... Bd6 {[%clk 0:04:05.4]} 13. Nc4 {[%clk 0:04:30.2]} 13... O-O
{[%clk 0:04:02.9]} 14. Kd2 {[%clk 0:04:23]} 14... Bf4+ {[%clk 0:03:58.6]} 15.
Kc2 {[%clk 0:04:21.2]} 15... Bxc1 {[%clk 0:03:53.7]} 16. Rhxc1 {[%clk 0:04:19]}
16... Nb6 {[%clk 0:03:52.6]} 17. Ne5 {[%clk 0:04:17.4]} 17... Na4 {[%clk
0:03:40]} 18. b3 {[%clk 0:04:11.4]} 18... f6 {[%clk 0:03:36.6]} 19. Nd7 {[%clk
0:04:07.6]} 19... Rbd8 {[%clk 0:03:21.4]} 20. Nxf8 {[%clk 0:04:03.3]} 20... Nb6
{[%clk 0:03:19.9]} 21. Nxe6 {[%clk 0:04:02.2]} 21... Re8 {[%clk 0:03:17.4]} 1-0

[Event "Live Chess"]
[Site "Chess.com"]
[Date "2023.05.20"]
[Round "-"]
[White "BogdanBeleiUkraine"]
[Black "AwesomeFredster"]
[Result "1-0"]
[WhiteElo "1248"]
[BlackElo "1392"]
[TimeControl "300"]
[EndTime "10:02:29 PDT"]
[Termination "BogdanBeleiUkraine won by resignation"]

1. e4 {[%clk 0:04:54.3]} 1... e5 {[%clk 0:04:57.3]} 2. Nc3 {[%clk 0:04:51.4]}
2... Nc6 {[%clk 0:04:53.1]} 3. Bc4 {[%clk 0:04:50]} 3... Bc5 {[%clk 0:04:51.3]}
4. h3 {[%clk 0:04:47.1]} 4... Nf6 {[%clk 0:04:49.7]} 5. Nge2 {[%clk 0:04:40.8]}
5... Bb6 {[%clk 0:04:43.3]} 6. Na4 {[%clk 0:04:33.2]} 6... Nxe4 {[%clk
0:04:39.1]} 7. Nxb6 {[%clk 0:04:31.3]} 7... axb6 {[%clk 0:04:38]} 8. d3 {[%clk
0:04:29.1]} 8... Nd6 {[%clk 0:04:35.5]} 9. Bb3 {[%clk 0:04:26.9]} 9... Na5
{[%clk 0:04:34]} 10. Bd5 {[%clk 0:04:08.8]} 10... c6 {[%clk 0:04:31]} 11. Bf3
{[%clk 0:04:05.7]} 11... O-O {[%clk 0:04:27.8]} 12. O-O {[%clk 0:04:04.3]} 12...
b5 {[%clk 0:04:26.7]} 13. Ng3 {[%clk 0:04:02.3]} 13... c5 {[%clk 0:04:22.2]} 14.
Be2 {[%clk 0:03:54.9]} 14... c4 {[%clk 0:04:20.1]} 15. f4 {[%clk 0:03:47.5]}
15... exf4 {[%clk 0:04:10]} 16. Bxf4 {[%clk 0:03:44.5]} 16... Qb6+ {[%clk
0:04:08.5]} 17. Kh1 {[%clk 0:03:41.6]} 17... cxd3 {[%clk 0:04:03.6]} 18. Qxd3
{[%clk 0:03:36.9]} 18... Ndc4 {[%clk 0:04:01.3]} 19. b3 {[%clk 0:03:30.3]} 19...
Na3 {[%clk 0:03:56.5]} 20. Qe4 {[%clk 0:03:16.9]} 20... Qc6 {[%clk 0:03:33.4]}
21. Bd3 {[%clk 0:03:02.5]} 21... Qxe4 {[%clk 0:03:26.9]} 22. Nxe4 {[%clk
0:02:59.5]} 22... b4 {[%clk 0:03:20.3]} 23. Bd6 {[%clk 0:02:49.5]} 23... Re8
{[%clk 0:03:19.2]} 24. Bxb4 {[%clk 0:02:48.2]} 24... d5 {[%clk 0:03:17.4]} 25.
Ng5 {[%clk 0:02:42.7]} 25... Nc6 {[%clk 0:03:08.3]} 26. Bxa3 {[%clk 0:02:27.3]}
26... f6 {[%clk 0:03:06.7]} 27. Nxh7 {[%clk 0:02:17.8]} 27... Rxa3 {[%clk
0:03:01]} 28. Rae1 {[%clk 0:02:09]} 28... Rxa2 {[%clk 0:02:46.5]} 29. Rxe8+
{[%clk 0:02:06.9]} 1-0

[Event "Live Chess"]
[Site "Chess.com"]
[Date "2023.05.20"]
[Round "-"]
[White "Rusty_Bridges"]
[Black "jameskwong"]
[Result "0-1"]
[WhiteElo "1419"]
[BlackElo "2155"]
[TimeControl "300"]
[EndTime "10:02:30 PDT"]
[Termination "jameskwong won by resignation"]

1. e4 {[%clk 0:04:58.4]} 1... e5 {[%clk 0:04:57.2]} 2. f4 {[%clk 0:04:51.4]}
2... exf4 {[%clk 0:04:55.5]} 3. Nf3 {[%clk 0:04:50.1]} 3... d5 {[%clk 0:04:55]}
4. exd5 {[%clk 0:04:48.7]} 4... Qxd5 {[%clk 0:04:54.7]} 5. Nc3 {[%clk
0:04:46.6]} 5... Qd8 {[%clk 0:04:50.4]} 6. d4 {[%clk 0:04:45]} 6... Nf6 {[%clk
0:04:39.1]} 7. Bxf4 {[%clk 0:04:42.8]} 7... Be7 {[%clk 0:04:37.2]} 8. Be2 {[%clk
0:04:41.6]} 8... O-O {[%clk 0:04:36.6]} 9. O-O {[%clk 0:04:40.6]} 9... c5 {[%clk
0:04:30.6]} 10. d5 {[%clk 0:04:38]} 10... Bd6 {[%clk 0:04:29.3]} 11. Bxd6 {[%clk
0:04:36.2]} 11... Qxd6 {[%clk 0:04:28.7]} 12. Bc4 {[%clk 0:04:22.1]} 12... a6
{[%clk 0:04:25.4]} 13. a4 {[%clk 0:04:20.7]} 13... Bg4 {[%clk 0:04:18.1]} 14.
Ba2 {[%clk 0:04:17.6]} 14... Nbd7 {[%clk 0:04:16.5]} 15. Qd3 {[%clk 0:04:12]}
15... Rfe8 {[%clk 0:04:09.7]} 16. Ng5 {[%clk 0:04:10.1]} 16... h6 {[%clk
0:04:05.1]} 17. Nge4 {[%clk 0:04:02.3]} 17... Nxe4 {[%clk 0:03:56.1]} 18. Nxe4
{[%clk 0:04:00.5]} 18... Qe5 {[%clk 0:03:53.9]} 19. Ng3 {[%clk 0:03:48.9]} 19...
Be2 {[%clk 0:03:41.4]} 20. Nxe2 {[%clk 0:03:33.8]} 20... Qxe2 {[%clk 0:03:41]}
21. Qf5 {[%clk 0:03:21.4]} 21... Nf6 {[%clk 0:03:39.1]} 22. d6 {[%clk
0:03:02.4]} 22... Rad8 {[%clk 0:03:33.7]} 23. Rae1 {[%clk 0:02:57.8]} 23... Qxe1
{[%clk 0:03:29.4]} 24. Rxe1 {[%clk 0:02:56.3]} 24... Rxe1+ {[%clk 0:03:28.7]}
25. Kf2 {[%clk 0:02:55.5]} 25... Rd1 {[%clk 0:03:25.7]} 26. Qxc5 {[%clk
0:02:19.2]} 26... Ne4+ {[%clk 0:03:22.2]} 0-1

[Event "Live Chess"]
[Site "Chess.com"]
[Date "2023.05.20"]
[Round "-"]
[White "MartaMost"]
[Black "LanceMaster23"]
[Result "0-1"]
[WhiteElo "1132"]
[BlackElo "1859"]
[TimeControl "300"]
[EndTime "10:02:40 PDT"]
[Termination "LanceMaster23 won by checkmate"]

1. e4 {[%clk 0:04:58.4]} 1... c5 {[%clk 0:04:58.6]} 2. Bc4 {[%clk 0:04:54.4]}
2... Nc6 {[%clk 0:04:57.5]} 3. Qh5 {[%clk 0:04:47.6]} 3... e6 {[%clk 0:04:55.9]}
4. Nc3 {[%clk 0:04:40.8]} 4... Nf6 {[%clk 0:04:52.9]} 5. Qf3 {[%clk 0:04:35.3]}
5... Ne5 {[%clk 0:04:49.2]} 6. Qf4 {[%clk 0:04:28.1]} 6... Nxc4 {[%clk
0:04:47.2]} 7. d3 {[%clk 0:04:16.4]} 7... Nb6 {[%clk 0:04:42.2]} 8. e5 {[%clk
0:04:11.1]} 8... Nfd5 {[%clk 0:04:38]} 9. Nxd5 {[%clk 0:04:05.9]} 9... Nxd5
{[%clk 0:04:37.9]} 10. Qe4 {[%clk 0:03:58.2]} 10... d6 {[%clk 0:04:26.8]} 11.
exd6 {[%clk 0:03:56]} 11... Bxd6 {[%clk 0:04:25]} 12. Nf3 {[%clk 0:03:49]} 12...
Qf6 {[%clk 0:04:11.6]} 13. Qa4+ {[%clk 0:03:36.6]} 13... Bd7 {[%clk 0:04:09.8]}
14. Qh4 {[%clk 0:03:30]} 14... Nb4 {[%clk 0:03:56.1]} 15. Qxf6 {[%clk
0:03:22.3]} 15... gxf6 {[%clk 0:03:56]} 16. O-O {[%clk 0:03:11.1]} 16... Nxc2
{[%clk 0:03:54.3]} 17. Rb1 {[%clk 0:03:05.2]} 17... Nd4 {[%clk 0:03:52.4]} 18.
Nxd4 {[%clk 0:03:02.4]} 18... cxd4 {[%clk 0:03:52.3]} 19. Bh6 {[%clk 0:02:58.6]}
19... Rg8 {[%clk 0:03:50]} 20. Rbc1 {[%clk 0:02:49.1]} 20... Bc6 {[%clk
0:03:48.2]} 21. h3 {[%clk 0:02:45.5]} 21... Rxg2+ {[%clk 0:03:46.1]} 22. Kh1
{[%clk 0:02:42]} 22... Rh2+ {[%clk 0:03:46]} 23. Kg1 {[%clk 0:02:40.6]} 23...
Rh1# {[%clk 0:03:43.5]} 0-1

[Event "Live Chess"]
[Site "Chess.com"]
[Date "2023.05.20"]
[Round "-"]
[White "wadsy27"]
[Black "zdanevych"]
[Result "1-0"]
[WhiteElo "2589"]
[BlackElo "1539"]
[TimeControl "300"]
[EndTime "10:02:50 PDT"]
[Termination "wadsy27 won by resignation"]

1. Nf3 {[%clk 0:04:57.4]} 1... d5 {[%clk 0:04:58.6]} 2. g3 {[%clk 0:04:55.6]}
2... c5 {[%clk 0:04:53.6]} 3. Bg2 {[%clk 0:04:54.4]} 3... Nc6 {[%clk 0:04:53]}
4. d4 {[%clk 0:04:52.7]} 4... cxd4 {[%clk 0:04:52]} 5. Nxd4 {[%clk 0:04:51.9]}
5... e5 {[%clk 0:04:49.8]} 6. Nxc6 {[%clk 0:04:50.7]} 6... bxc6 {[%clk
0:04:49.7]} 7. c4 {[%clk 0:04:49.3]} 7... Nf6 {[%clk 0:04:47.5]} 8. Nc3 {[%clk
0:04:48.1]} 8... Be6 {[%clk 0:04:35.6]} 9. cxd5 {[%clk 0:04:40.7]} 9... cxd5
{[%clk 0:04:34.6]} 10. Qa4+ {[%clk 0:04:39.7]} 10... Qd7 {[%clk 0:04:25.6]} 11.
Qxd7+ {[%clk 0:04:29.6]} 11... Kxd7 {[%clk 0:04:24.6]} 12. Bg5 {[%clk
0:04:28.3]} 12... e4 {[%clk 0:04:12.4]} 13. Rd1 {[%clk 0:04:19.3]} 13... Bb4
{[%clk 0:03:57]} 14. Bxf6 {[%clk 0:04:10.3]} 14... gxf6 {[%clk 0:03:47.9]} 15.
Bxe4 {[%clk 0:04:08.9]} 15... Bxc3+ {[%clk 0:03:43.6]} 16. bxc3 {[%clk
0:04:08.5]} 16... Rac8 {[%clk 0:03:34.6]} 17. Bxd5 {[%clk 0:04:03.4]} 17... Bxd5
{[%clk 0:03:34.4]} 18. Rxd5+ {[%clk 0:04:01.6]} 18... Ke6 {[%clk 0:03:34.3]} 19.
Rd3 {[%clk 0:03:58.9]} 19... Rc6 {[%clk 0:03:25.1]} 20. O-O {[%clk 0:03:55.2]}
20... Rhc8 {[%clk 0:03:23.9]} 21. Re3+ {[%clk 0:03:53.8]} 21... Kf5 {[%clk
0:03:09.3]} 22. Rc1 {[%clk 0:03:47]} 22... Ra6 {[%clk 0:03:07.6]} 23. Rc2 {[%clk
0:03:45.7]} 23... Rc5 {[%clk 0:03:06.6]} 24. c4 {[%clk 0:03:40.9]} 24... Ra4
{[%clk 0:03:03.5]} 25. Rec3 {[%clk 0:03:37.5]} 25... Rca5 {[%clk 0:03:01]} 26.
c5 {[%clk 0:03:34.9]} 26... Rxa2 {[%clk 0:02:59.7]} 27. c6 {[%clk 0:03:34.1]}
27... Rxc2 {[%clk 0:02:57.8]} 28. Rxc2 {[%clk 0:03:34]} 28... Ra1+ {[%clk
0:02:55.9]} 29. Kg2 {[%clk 0:03:32.7]} 1-0

[Event "Live Chess"]
[Site "Chess.com"]
[Date "2023.05.20"]
[Round "-"]
[White "smoggyrabbit"]
[Black "Conradical12"]
[Result "1-0"]
[WhiteElo "1632"]
[BlackElo "1502"]
[TimeControl "300"]
[EndTime "10:02:56 PDT"]
[Termination "smoggyrabbit won by checkmate"]

1. d4 {[%clk 0:04:59.5]} 1... e5 {[%clk 0:04:58.9]} 2. dxe5 {[%clk 0:04:57.2]}
2... Nc6 {[%clk 0:04:58.5]} 3. Nf3 {[%clk 0:04:56.1]} 3... Qe7 {[%clk
0:04:57.1]} 4. Nc3 {[%clk 0:04:53]} 4... g6 {[%clk 0:04:54.1]} 5. e4 {[%clk
0:04:51.6]} 5... Bg7 {[%clk 0:04:53]} 6. Bc4 {[%clk 0:04:05]} 6... Qc5 {[%clk
0:04:41.1]} 7. Bb3 {[%clk 0:03:45.3]} 7... Nge7 {[%clk 0:04:38.7]} 8. Be3 {[%clk
0:03:32.5]} 8... Qa5 {[%clk 0:04:32.6]} 9. O-O {[%clk 0:03:25.9]} 9... O-O
{[%clk 0:04:30.8]} 10. Nd5 {[%clk 0:03:05.8]} 10... Nxd5 {[%clk 0:04:28.4]} 11.
exd5 {[%clk 0:03:04.6]} 11... Nxe5 {[%clk 0:04:27]} 12. c3 {[%clk 0:02:45.9]}
12... b6 {[%clk 0:04:16.3]} 13. Nd2 {[%clk 0:02:22.3]} 13... Ba6 {[%clk
0:04:11.2]} 14. c4 {[%clk 0:02:16]} 14... c6 {[%clk 0:03:59.1]} 15. dxc6 {[%clk
0:01:10.7]} 15... dxc6 {[%clk 0:03:54.7]} 16. Qc2 {[%clk 0:00:27.1]} 16... Rad8
{[%clk 0:03:40.2]} 17. Ne4 {[%clk 0:00:20.7]} 17... Nd3 {[%clk 0:03:34.4]} 18.
Bd2 {[%clk 0:00:18.5]} 18... Nxb2 {[%clk 0:03:31.3]} 19. Bxa5 {[%clk 0:00:17.1]}
19... Nd3 {[%clk 0:03:29.5]} 20. Bd2 {[%clk 0:00:15.3]} 20... Bxa1 {[%clk
0:03:27.4]} 21. Rxa1 {[%clk 0:00:13.1]} 21... b5 {[%clk 0:03:25.9]} 22. Bh6
{[%clk 0:00:11.7]} 22... Rfe8 {[%clk 0:03:24]} 23. Nf6+ {[%clk 0:00:10.6]} 23...
Kh8 {[%clk 0:03:21.4]} 24. Nxe8 {[%clk 0:00:09.7]} 24... Rxe8 {[%clk 0:03:19.5]}
25. Qc3+ {[%clk 0:00:08.8]} 25... Ne5 {[%clk 0:03:17.8]} 26. f4 {[%clk
0:00:07.6]} 26... f6 {[%clk 0:03:15.1]} 27. fxe5 {[%clk 0:00:06.7]} 27... fxe5
{[%clk 0:03:13.9]} 28. Qf3 {[%clk 0:00:05.4]} 28... Kg8 {[%clk 0:03:06.5]} 29.
c5+ {[%clk 0:00:04.4]} 29... Kh8 {[%clk 0:03:03.8]} 30. Qf6# {[%clk 0:00:03.4]}
1-0